[Event "Live Chess"]
[Site "Chess.com"]
[Date "2024.06.02"]
[Round "-"]
[White "Plimsol"]
[Black "nyclone"]
[Result "1-0"]
[WhiteElo "2349"]
[BlackElo "1147"]
[TimeControl "300"]
[EndTime "6:50:26 PDT"]
[Termination "Plimsol won by checkmate"]

1. e4 {[%clk 0:04:58]} 1... e6 {[%clk 0:04:58.3]} 2. d4 {[%clk 0:04:57]} 2... b6
{[%clk 0:04:56.4]} 3. Nc3 {[%clk 0:04:56]} 3... Bb7 {[%clk 0:04:55.4]} 4. Nf3
{[%clk 0:04:55.1]} 4... Bb4 {[%clk 0:04:54.6]} 5. Bd3 {[%clk 0:04:54.3]} 5...
Bxc3+ {[%clk 0:04:53.6]} 6. bxc3 {[%clk 0:04:53.1]} 6... Nf6 {[%clk 0:04:50.5]}
7. Qe2 {[%clk 0:04:51.9]} 7... O-O {[%clk 0:04:48.5]} 8. O-O {[%clk 0:04:50.5]}
8... h6 {[%clk 0:04:47.6]} 9. a4 {[%clk 0:04:46.7]} 9... d5 {[%clk 0:04:45.4]}
10. e5 {[%clk 0:04:43]} 10... Ne4 {[%clk 0:04:40.4]} 11. Bb2 {[%clk 0:04:34.9]}
11... Nd7 {[%clk 0:04:28.5]} 12. c4 {[%clk 0:04:31.9]} 12... f6 {[%clk
0:04:25.5]} 13. cxd5 {[%clk 0:04:28.8]} 13... exd5 {[%clk 0:04:25.4]} 14. c4
{[%clk 0:04:25.2]} 14... fxe5 {[%clk 0:04:21.6]} 15. Nxe5 {[%clk 0:04:24]} 15...
Nxe5 {[%clk 0:04:08.8]} 16. dxe5 {[%clk 0:04:22.6]} 16... Qg5 {[%clk 0:03:33.2]}
17. cxd5 {[%clk 0:04:12.1]} 17... Nd2 {[%clk 0:03:09.8]} 18. Bc1 {[%clk
0:03:47]} 18... Bxd5 {[%clk 0:03:05.7]} 19. f4 {[%clk 0:03:46]} 19... Qxg2+
{[%clk 0:02:17.3]} 20. Qxg2 {[%clk 0:03:44.3]} 20... Bxg2 {[%clk 0:02:15.6]} 21.
Kxg2 {[%clk 0:03:43.6]} 21... Nxf1 {[%clk 0:02:13.8]} 22. Bxf1 {[%clk
0:03:42.1]} 22... Rad8 {[%clk 0:02:04.5]} 23. Be3 {[%clk 0:03:40.6]} 23... c5
{[%clk 0:01:58.5]} 24. a5 {[%clk 0:03:39]} 24... Rf5 {[%clk 0:01:44.6]} 25. Bc4+
{[%clk 0:03:33.7]} 25... Kf8 {[%clk 0:01:41]} 26. Be6 {[%clk 0:03:29.2]} 26...
Rh5 {[%clk 0:01:29.7]} 27. Bg4 {[%clk 0:03:28.3]} 27... Rh4 {[%clk 0:01:24.2]}
28. Kg3 {[%clk 0:03:21.9]} 28... g5 {[%clk 0:01:22.8]} 29. fxg5 {[%clk
0:03:16.3]} 29... hxg5 {[%clk 0:01:17.8]} 30. Bxg5 {[%clk 0:03:14.9]} 30...
Rxg4+ {[%clk 0:01:14.8]} 31. Kxg4 {[%clk 0:03:13.6]} 31... Rd4+ {[%clk
0:01:12.7]} 32. Kf5 {[%clk 0:03:12.7]} 32... Rb4 {[%clk 0:01:03.2]} 33. axb6
{[%clk 0:03:10.8]} 33... axb6 {[%clk 0:01:02]} 34. Kf6 {[%clk 0:03:09.1]} 34...
Ke8 {[%clk 0:01:01.4]} 35. e6 {[%clk 0:03:08.4]} 35... c4 {[%clk 0:00:57.9]} 36.
Ra8# {[%clk 0:03:06.2]} 1-0

[Event "Live Chess"]
[Site "Chess.com"]
[Date "2024.06.02"]
[Round "-"]
[White "PavelChernomordik"]
[Black "gmnorfolk"]
[Result "1/2-1/2"]
[WhiteElo "2502"]
[BlackElo "2151"]
[TimeControl "300"]
[EndTime "6:50:39 PDT"]
[Termination "Game drawn - insufficient material"]

1. e4 {[%clk 0:04:57.9]} 1... c5 {[%clk 0:04:58.3]} 2. Nc3 {[%clk 0:04:56.5]}
2... d6 {[%clk 0:04:54.3]} 3. f4 {[%clk 0:04:55.3]} 3... g6 {[%clk 0:04:53.2]}
4. Nf3 {[%clk 0:04:54.2]} 4... Bg7 {[%clk 0:04:52.7]} 5. g3 {[%clk 0:04:51.9]}
5... Nc6 {[%clk 0:04:50.8]} 6. Bg2 {[%clk 0:04:50.9]} 6... e6 {[%clk 0:04:38.6]}
7. d3 {[%clk 0:04:48.5]} 7... Nge7 {[%clk 0:04:37.9]} 8. Be3 {[%clk 0:04:44.3]}
8... O-O {[%clk 0:04:35.9]} 9. O-O {[%clk 0:04:42.7]} 9... b6 {[%clk 0:04:33.9]}
10. d4 {[%clk 0:04:34.5]} 10... Ba6 {[%clk 0:04:17.2]} 11. Rf2 {[%clk
0:04:31.2]} 11... d5 {[%clk 0:04:11.3]} 12. Rd2 {[%clk 0:04:08.8]} 12... dxe4
{[%clk 0:04:02.5]} 13. Nxe4 {[%clk 0:03:46.6]} 13... Nf5 {[%clk 0:03:50.5]} 14.
Bf2 {[%clk 0:03:43.6]} 14... cxd4 {[%clk 0:03:47.1]} 15. g4 {[%clk 0:03:39.9]}
15... Nd6 {[%clk 0:03:45.6]} 16. Nxd4 {[%clk 0:03:36]} 16... Nxe4 {[%clk
0:03:24.2]} 17. Bxe4 {[%clk 0:03:32]} 17... Nxd4 {[%clk 0:03:03.5]} 18. Bxa8
{[%clk 0:03:05.9]} 18... Ne2+ {[%clk 0:02:45.4]} 19. Qxe2 {[%clk 0:02:31.6]}
19... Bxe2 {[%clk 0:02:38.1]} 20. Rxd8 {[%clk 0:02:29.1]} 20... Rxd8 {[%clk
0:02:36.6]} 21. Be4 {[%clk 0:02:13.7]} 21... Bxg4 {[%clk 0:02:30.6]} 22. a4
{[%clk 0:01:58.3]} 22... Bxb2 {[%clk 0:02:25.5]} 23. Ra2 {[%clk 0:01:53.9]}
23... Bd4 {[%clk 0:02:21.1]} 24. a5 {[%clk 0:01:47]} 24... f5 {[%clk 0:02:07.7]}
25. axb6 {[%clk 0:01:30.2]} 25... axb6 {[%clk 0:01:25.9]} 26. Bd3 {[%clk
0:01:20.2]} 26... Bxf2+ {[%clk 0:01:18]} 27. Kxf2 {[%clk 0:01:19.2]} 27... Rd6
{[%clk 0:00:48.5]} 28. Ra7 {[%clk 0:01:13.4]} 28... h6 {[%clk 0:00:44.2]} 29.
Ke3 {[%clk 0:01:06.8]} 29... g5 {[%clk 0:00:41.9]} 30. c4 {[%clk 0:00:58.9]}
30... Bh3 {[%clk 0:00:35.4]} 31. Be2 {[%clk 0:00:51.6]} 31... Bg2 {[%clk
0:00:33.4]} 32. Ra6 {[%clk 0:00:41.4]} 32... gxf4+ {[%clk 0:00:24.8]} 33. Kxf4
{[%clk 0:00:40.3]} 33... Rd4+ {[%clk 0:00:22.4]} 34. Kg3 {[%clk 0:00:31.9]}
34... Be4 {[%clk 0:00:21.4]} 35. Rxb6 {[%clk 0:00:28.8]} 35... e5 {[%clk
0:00:20.6]} 36. Rxh6 {[%clk 0:00:24.9]} 36... f4+ {[%clk 0:00:19.7]} 37. Kf2
{[%clk 0:00:23.9]} 37... Rd2 {[%clk 0:00:18.1]} 38. Ke1 {[%clk 0:00:22.7]} 38...
Rc2 {[%clk 0:00:16.5]} 39. Re6 {[%clk 0:00:21.4]} 39... f3 {[%clk 0:00:14.2]}
40. Bxf3 {[%clk 0:00:18.9]} 40... Bxf3 {[%clk 0:00:12.3]} 41. Rxe5 {[%clk
0:00:18.3]} 41... Rxc4 {[%clk 0:00:11.8]} 42. Kf2 {[%clk 0:00:17.2]} 42... Rc2+
{[%clk 0:00:09.3]} 43. Kxf3 {[%clk 0:00:16.1]} 43... Rxh2 {[%clk 0:00:08.5]} 44.
Kg4 {[%clk 0:00:15.6]} 44... Rg2+ {[%clk 0:00:06.9]} 45. Kf3 {[%clk 0:00:14.7]}
45... Rg7 {[%clk 0:00:06.8]} 46. Kf4 {[%clk 0:00:13.7]} 46... Rf7+ {[%clk
0:00:04.5]} 47. Rf5 {[%clk 0:00:12.7]} 47... Rxf5+ {[%clk 0:00:03.8]} 48. Kxf5
{[%clk 0:00:11.8]} 1/2-1/2

[Event "Live Chess"]
[Site "Chess.com"]
[Date "2024.06.02"]
[Round "-"]
[White "JanMur7"]
[Black "V1nas"]
[Result "1-0"]
[WhiteElo "2297"]
[BlackElo "1314"]
[TimeControl "300"]
[EndTime "6:50:46 PDT"]
[Termination "JanMur7 won by resignation"]

1. c4 {[%clk 0:04:58.8]} 1... e6 {[%clk 0:04:55.3]} 2. Nc3 {[%clk 0:04:58.3]}
2... d5 {[%clk 0:04:54.7]} 3. d4 {[%clk 0:04:57.4]} 3... c5 {[%clk 0:04:53.6]}
4. cxd5 {[%clk 0:04:55.9]} 4... cxd4 {[%clk 0:04:53.1]} 5. Qxd4 {[%clk
0:04:54.5]} 5... Nc6 {[%clk 0:04:52]} 6. Qd1 {[%clk 0:04:54.1]} 6... exd5 {[%clk
0:04:50.9]} 7. Qxd5 {[%clk 0:04:53]} 7... Qc7 {[%clk 0:04:48.8]} 8. Nf3 {[%clk
0:04:50.7]} 8... Be6 {[%clk 0:04:48]} 9. Qd1 {[%clk 0:04:48]} 9... Rd8 {[%clk
0:04:44.6]} 10. Qa4 {[%clk 0:04:46.6]} 10... Nf6 {[%clk 0:04:41.7]} 11. Bf4
{[%clk 0:04:43.9]} 11... Qd7 {[%clk 0:04:32.8]} 12. e3 {[%clk 0:04:36.4]} 12...
Bb4 {[%clk 0:04:27.8]} 13. Be2 {[%clk 0:04:33.2]} 13... Bxc3+ {[%clk 0:04:26.3]}
14. bxc3 {[%clk 0:04:31.3]} 14... O-O {[%clk 0:04:17.5]} 15. O-O {[%clk
0:04:29.6]} 15... Nd5 {[%clk 0:04:11]} 16. Qc2 {[%clk 0:04:22.7]} 16... Nxf4
{[%clk 0:04:08.8]} 17. exf4 {[%clk 0:04:22.2]} 17... Bf5 {[%clk 0:04:06.1]} 18.
Qb2 {[%clk 0:04:21.2]} 18... Qc7 {[%clk 0:04:00.9]} 19. g3 {[%clk 0:04:17]}
19... Bg4 {[%clk 0:03:55.2]} 20. Rfd1 {[%clk 0:04:15]} 20... Rfe8 {[%clk
0:03:51.4]} 21. Rxd8 {[%clk 0:04:09.3]} 21... Rxd8 {[%clk 0:03:41.7]} 22. Rd1
{[%clk 0:04:07.6]} 22... Rxd1+ {[%clk 0:03:27.2]} 23. Bxd1 {[%clk 0:04:07.5]}
23... b6 {[%clk 0:03:06.4]} 24. Qd2 {[%clk 0:04:00.8]} 24... Na5 {[%clk
0:02:58.1]} 25. Ne5 {[%clk 0:03:55.5]} 25... Bxd1 {[%clk 0:02:50.7]} 26. Qxd1
{[%clk 0:03:55.4]} 26... h6 {[%clk 0:02:29.9]} 27. Qd5 {[%clk 0:03:47.4]} 27...
Qxc3 {[%clk 0:02:14.7]} 28. Qxf7+ {[%clk 0:03:44.7]} 28... Kh7 {[%clk
0:02:11.5]} 29. Qg6+ {[%clk 0:03:42.9]} 29... Kg8 {[%clk 0:02:10]} 30. Qe6+
{[%clk 0:03:40.7]} 30... Kh7 {[%clk 0:02:09.3]} 31. Ng6 {[%clk 0:03:27.9]} 31...
Qf3 {[%clk 0:01:38]} 32. f5 {[%clk 0:03:19.9]} 32... Nb7 {[%clk 0:00:51.9]} 33.
Ne7 {[%clk 0:03:08.7]} 33... Qd1+ {[%clk 0:00:21.8]} 34. Kg2 {[%clk 0:03:06.3]}
1-0

[Event "Live Chess"]
[Site "Chess.com"]
[Date "2024.06.02"]
[Round "-"]
[White "wadsy27"]
[Black "Purple1szed"]
[Result "1-0"]
[WhiteElo "2585"]
[BlackElo "2027"]
[TimeControl "300"]
[EndTime "6:50:49 PDT"]
[Termination "wadsy27 won by resignation"]

1. c4 {[%clk 0:04:58.7]} 1... e5 {[%clk 0:04:52.5]} 2. g3 {[%clk 0:04:58.2]}
2... Nf6 {[%clk 0:04:51.6]} 3. Bg2 {[%clk 0:04:57.6]} 3... d5 {[%clk 0:04:51.3]}
4. cxd5 {[%clk 0:04:56.9]} 4... Nxd5 {[%clk 0:04:51.2]} 5. Nf3 {[%clk
0:04:55.9]} 5... Nc6 {[%clk 0:04:50.2]} 6. O-O {[%clk 0:04:55.5]} 6... Be7
{[%clk 0:04:48.8]} 7. Nc3 {[%clk 0:04:54.9]} 7... Nb6 {[%clk 0:04:48]} 8. a3
{[%clk 0:04:52.7]} 8... Be6 {[%clk 0:04:43.9]} 9. d3 {[%clk 0:04:51.5]} 9... O-O
{[%clk 0:04:41.8]} 10. Be3 {[%clk 0:04:44.6]} 10... Qd7 {[%clk 0:04:40]} 11. Ne4
{[%clk 0:04:39]} 11... h6 {[%clk 0:04:27.4]} 12. Nc5 {[%clk 0:04:37.2]} 12...
Bxc5 {[%clk 0:04:22.1]} 13. Bxc5 {[%clk 0:04:37.1]} 13... Rfe8 {[%clk
0:04:21.5]} 14. Rc1 {[%clk 0:04:35]} 14... Bh3 {[%clk 0:04:19.4]} 15. b4 {[%clk
0:04:29.1]} 15... Bxg2 {[%clk 0:04:17]} 16. Kxg2 {[%clk 0:04:27.4]} 16... f5
{[%clk 0:04:11.5]} 17. Qb3+ {[%clk 0:04:20]} 17... Qe6 {[%clk 0:04:02.3]} 18.
Qxe6+ {[%clk 0:04:18.4]} 18... Rxe6 {[%clk 0:04:02.2]} 19. e4 {[%clk 0:04:12.8]}
19... fxe4 {[%clk 0:03:55.5]} 20. dxe4 {[%clk 0:04:12.7]} 20... Rd8 {[%clk
0:03:54.2]} 21. Rfd1 {[%clk 0:04:10]} 21... Ree8 {[%clk 0:03:53]} 22. b5 {[%clk
0:04:03.7]} 22... Nd4 {[%clk 0:03:46.9]} 23. Nxd4 {[%clk 0:03:42.5]} 23... exd4
{[%clk 0:03:46.8]} 24. Bxd4 {[%clk 0:03:37.2]} 24... Rxe4 {[%clk 0:03:41.5]} 25.
Be3 {[%clk 0:03:22.9]} 25... Rxd1 {[%clk 0:03:38.9]} 26. Rxd1 {[%clk 0:03:22.8]}
26... Re7 {[%clk 0:03:36]} 27. Rd8+ {[%clk 0:03:21.1]} 27... Kf7 {[%clk
0:03:33.9]} 28. Rb8 {[%clk 0:03:20.7]} 28... c6 {[%clk 0:03:29.4]} 29. bxc6
{[%clk 0:03:08.4]} 29... bxc6 {[%clk 0:03:29.3]} 30. Bxb6 {[%clk 0:03:06.7]}
30... axb6 {[%clk 0:03:29.2]} 31. Rxb6 {[%clk 0:03:05.9]} 31... Rc7 {[%clk
0:03:28.8]} 32. Kf3 {[%clk 0:03:02.7]} 32... c5 {[%clk 0:03:28.1]} 33. Ke3
{[%clk 0:03:01.8]} 33... c4 {[%clk 0:03:27.7]} 34. Rb2 {[%clk 0:02:55.6]} 34...
c3 {[%clk 0:03:23.6]} 35. Rc2 {[%clk 0:02:54]} 35... Kf6 {[%clk 0:02:56.6]} 36.
Kd3 {[%clk 0:02:50.3]} 36... Ra7 {[%clk 0:02:55.6]} 37. Rxc3 {[%clk 0:02:48.9]}
37... Rd7+ {[%clk 0:02:55.5]} 38. Ke3 {[%clk 0:02:47.2]} 38... Re7+ {[%clk
0:02:54.3]} 39. Kf4 {[%clk 0:02:43.1]} 39... Ra7 {[%clk 0:02:54.2]} 40. h4
{[%clk 0:02:41.8]} 40... Ra4+ {[%clk 0:02:52.7]} 41. Kf3 {[%clk 0:02:40.7]}
41... h5 {[%clk 0:02:48.3]} 42. Ke3 {[%clk 0:02:35.7]} 42... Ra6 {[%clk
0:02:41.6]} 43. Kd3 {[%clk 0:02:34.4]} 43... g6 {[%clk 0:02:38.8]} 44. Kc4
{[%clk 0:02:30.9]} 44... Kf5 {[%clk 0:02:33.4]} 45. Kb5 {[%clk 0:02:29.4]} 45...
Ra8 {[%clk 0:02:29.3]} 46. a4 {[%clk 0:02:27.3]} 46... Kg4 {[%clk 0:02:28.8]}
47. a5 {[%clk 0:02:25.6]} 47... Rf8 {[%clk 0:02:28.2]} 48. f4 {[%clk 0:02:24]}
48... Rf5+ {[%clk 0:02:24.7]} 49. Kb6 {[%clk 0:02:19.5]} 49... Rf6+ {[%clk
0:02:23.9]} 50. Rc6 {[%clk 0:02:18.4]} 50... Rf8 {[%clk 0:02:21]} 51. Rxg6+
{[%clk 0:02:16.4]} 51... Kf3 {[%clk 0:02:19.5]} 52. a6 {[%clk 0:02:15.1]} 52...
Rb8+ {[%clk 0:02:17]} 53. Kc7 {[%clk 0:02:13.5]} 53... Rb1 {[%clk 0:02:14.3]}
54. a7 {[%clk 0:02:12.5]} 54... Rc1+ {[%clk 0:02:13.5]} 55. Kb7 {[%clk
0:02:11.8]} 55... Rb1+ {[%clk 0:02:12.7]} 56. Rb6 {[%clk 0:02:11.4]} 56... Ra1
{[%clk 0:02:12.3]} 57. a8=Q {[%clk 0:02:10.4]} 57... Rxa8 {[%clk 0:02:11]} 58.
Kxa8 {[%clk 0:02:10.3]} 58... Kxg3 {[%clk 0:02:10.7]} 59. Rg6+ {[%clk
0:02:09.4]} 59... Kxf4 {[%clk 0:02:07.3]} 60. Rg5 {[%clk 0:02:08.1]} 60... Kf3
{[%clk 0:02:06.7]} 61. Kb7 {[%clk 0:02:07.9]} 61... Kf4 {[%clk 0:02:05.8]} 62.
Kc6 {[%clk 0:02:07.8]} 62... Kf3 {[%clk 0:02:05.3]} 63. Kd5 {[%clk 0:02:07.5]}
63... Kf4 {[%clk 0:02:05.2]} 64. Rxh5 {[%clk 0:02:03.6]} 64... Kg4 {[%clk
0:02:05.1]} 65. Rg5+ {[%clk 0:02:03]} 65... Kxh4 {[%clk 0:02:04.3]} 66. Rg8
{[%clk 0:02:02.6]} 66... Kh3 {[%clk 0:02:02.9]} 67. Ke5 {[%clk 0:02:02.5]} 1-0

[Event "Live Chess"]
[Site "Chess.com"]
[Date "2024.06.02"]
[Round "-"]
[White "gobbles19"]
[Black "Ninifu"]
[Result "1-0"]
[WhiteElo "2202"]
[BlackElo "2007"]
[TimeControl "300"]
[EndTime "6:50:53 PDT"]
[Termination "gobbles19 won on time"]

1. e4 {[%clk 0:04:58]} 1... d5 {[%clk 0:04:54.3]} 2. exd5 {[%clk 0:04:56.9]}
2... Nf6 {[%clk 0:04:53.7]} 3. Bb5+ {[%clk 0:04:55.2]} 3... Nbd7 {[%clk
0:04:52]} 4. d4 {[%clk 0:04:53.7]} 4... Nxd5 {[%clk 0:04:49.2]} 5. Nf3 {[%clk
0:04:53.3]} 5... c6 {[%clk 0:04:46.5]} 6. Be2 {[%clk 0:04:50.9]} 6... e6 {[%clk
0:04:45.6]} 7. O-O {[%clk 0:04:49.3]} 7... Be7 {[%clk 0:04:42.2]} 8. c4 {[%clk
0:04:47.6]} 8... N5f6 {[%clk 0:04:37.9]} 9. Nc3 {[%clk 0:04:46.7]} 9... O-O
{[%clk 0:04:37.2]} 10. h3 {[%clk 0:04:40.7]} 10... b6 {[%clk 0:04:36.4]} 11. Bf4
{[%clk 0:04:38.3]} 11... Bb7 {[%clk 0:04:35.2]} 12. Qd2 {[%clk 0:04:29.7]} 12...
Rc8 {[%clk 0:04:31.9]} 13. Rad1 {[%clk 0:04:27.8]} 13... c5 {[%clk 0:04:24.2]}
14. d5 {[%clk 0:04:24.7]} 14... exd5 {[%clk 0:04:22.5]} 15. cxd5 {[%clk
0:04:22.4]} 15... Re8 {[%clk 0:04:05.5]} 16. Rfe1 {[%clk 0:04:17.3]} 16... Bf8
{[%clk 0:03:56.3]} 17. Bd3 {[%clk 0:04:09.8]} 17... a6 {[%clk 0:03:41.7]} 18. a4
{[%clk 0:04:02.8]} 18... b5 {[%clk 0:03:32.3]} 19. axb5 {[%clk 0:04:01]} 19...
c4 {[%clk 0:03:29.2]} 20. Bf5 {[%clk 0:03:54]} 20... axb5 {[%clk 0:03:17.8]} 21.
Nxb5 {[%clk 0:03:46.3]} 21... Rc5 {[%clk 0:03:14]} 22. Nc3 {[%clk 0:03:14.2]}
22... Rxe1+ {[%clk 0:03:04.5]} 23. Rxe1 {[%clk 0:03:12.4]} 23... Nb6 {[%clk
0:03:02.5]} 24. Be3 {[%clk 0:03:01.8]} 24... Ra5 {[%clk 0:02:47.9]} 25. Ne5
{[%clk 0:02:32.1]} 25... Nbxd5 {[%clk 0:01:54]} 26. Nxc4 {[%clk 0:02:25.6]}
26... Ra8 {[%clk 0:01:35.2]} 27. Rd1 {[%clk 0:02:20.2]} 27... Nxe3 {[%clk
0:01:10.3]} 28. Qxe3 {[%clk 0:01:41.8]} 28... Qc7 {[%clk 0:00:51.8]} 29. Ne5
{[%clk 0:01:31.6]} 29... Bc5 {[%clk 0:00:38.6]} 30. Qf4 {[%clk 0:01:05.5]} 30...
Re8 {[%clk 0:00:37.7]} 31. Nd3 {[%clk 0:00:56.5]} 31... Qxf4 {[%clk 0:00:33.4]}
32. Nxf4 {[%clk 0:00:56.4]} 32... g6 {[%clk 0:00:28.1]} 33. Bc2 {[%clk 0:00:51]}
33... Kg7 {[%clk 0:00:16.7]} 34. Ncd5 {[%clk 0:00:42.9]} 34... h5 {[%clk
0:00:14.2]} 35. Nxf6 {[%clk 0:00:41.6]} 35... Kxf6 {[%clk 0:00:13.3]} 36. Nd3
{[%clk 0:00:39.4]} 36... Bb6 {[%clk 0:00:11]} 37. Bb3 {[%clk 0:00:37]} 37... Re2
{[%clk 0:00:09]} 38. Bc4 {[%clk 0:00:27.6]} 38... Be4 {[%clk 0:00:06]} 39. Nc5
{[%clk 0:00:23.7]} 39... Rxf2 {[%clk 0:00:04.8]} 40. Nxe4+ {[%clk 0:00:22.7]}
1-0

[Event "Live Chess"]
[Site "Chess.com"]
[Date "2024.06.02"]
[Round "-"]
[White "Bradfield133"]
[Black "dmitro74"]
[Result "1-0"]
[WhiteElo "1844"]
[BlackElo "1745"]
[TimeControl "300"]
[EndTime "6:51:13 PDT"]
[Termination "Bradfield133 won on time"]

1. c4 {[%clk 0:04:57.8]} 1... e5 {[%clk 0:04:56.7]} 2. g3 {[%clk 0:04:56.6]}
2... c6 {[%clk 0:04:55.2]} 3. d4 {[%clk 0:04:54.5]} 3... exd4 {[%clk 0:04:46]}
4. Qxd4 {[%clk 0:04:54.4]} 4... Nf6 {[%clk 0:04:37.4]} 5. Nc3 {[%clk 0:04:52.8]}
5... Be7 {[%clk 0:04:30.1]} 6. Bg2 {[%clk 0:04:51.5]} 6... O-O {[%clk 0:04:28]}
7. Nf3 {[%clk 0:04:51]} 7... d5 {[%clk 0:04:23.4]} 8. cxd5 {[%clk 0:04:47.8]}
8... Nxd5 {[%clk 0:04:21.1]} 9. Nxd5 {[%clk 0:04:46]} 9... Qxd5 {[%clk
0:04:18.4]} 10. Qxd5 {[%clk 0:04:43.9]} 10... cxd5 {[%clk 0:04:17]} 11. Be3
{[%clk 0:04:40.7]} 11... Bb4+ {[%clk 0:04:14.1]} 12. Bd2 {[%clk 0:04:38.2]}
12... Bxd2+ {[%clk 0:04:12.2]} 13. Nxd2 {[%clk 0:04:32.6]} 13... Be6 {[%clk
0:04:09.6]} 14. Nf3 {[%clk 0:04:22.9]} 14... Nc6 {[%clk 0:04:07.8]} 15. O-O
{[%clk 0:04:21.2]} 15... d4 {[%clk 0:04:03.9]} 16. Rfd1 {[%clk 0:04:09.8]} 16...
Rfd8 {[%clk 0:04:00.3]} 17. Rd2 {[%clk 0:04:05]} 17... Bc4 {[%clk 0:03:48.5]}
18. b3 {[%clk 0:04:01.4]} 18... Ba6 {[%clk 0:03:41.9]} 19. Rad1 {[%clk
0:03:55.5]} 19... Kf8 {[%clk 0:03:29.9]} 20. Kf1 {[%clk 0:03:50.1]} 20... Re8
{[%clk 0:03:17.4]} 21. Rc1 {[%clk 0:03:20.5]} 21... Rad8 {[%clk 0:02:56.2]} 22.
Ne1 {[%clk 0:03:16.9]} 22... Re7 {[%clk 0:02:24.7]} 23. Bxc6 {[%clk 0:02:58.9]}
23... Rc7 {[%clk 0:02:11.6]} 24. Nf3 {[%clk 0:02:46]} 24... d3 {[%clk
0:02:04.5]} 25. exd3 {[%clk 0:02:01]} 25... Bxd3+ {[%clk 0:01:59.5]} 26. Kg2
{[%clk 0:01:52.6]} 26... bxc6 {[%clk 0:01:52.7]} 27. Rc3 {[%clk 0:01:34.6]}
27... Rcd7 {[%clk 0:01:40.9]} 28. Rxc6 {[%clk 0:01:30.2]} 28... Be4 {[%clk
0:01:26.4]} 29. Rxd7 {[%clk 0:01:27.6]} 29... Rxd7 {[%clk 0:01:22.8]} 30. Rc8+
{[%clk 0:01:22.8]} 30... Ke7 {[%clk 0:01:20.9]} 31. Rc3 {[%clk 0:01:21.3]} 31...
Rd3 {[%clk 0:01:08.4]} 32. Rxd3 {[%clk 0:01:11.7]} 32... Bxd3 {[%clk 0:01:06.8]}
33. Nd2 {[%clk 0:01:10.9]} 33... Kd6 {[%clk 0:01:04.6]} 34. Kf3 {[%clk
0:01:09.3]} 34... Kd5 {[%clk 0:01:02.9]} 35. Ke3 {[%clk 0:01:08.3]} 35... Bb5
{[%clk 0:00:59]} 36. f3 {[%clk 0:01:00.4]} 36... f5 {[%clk 0:00:55.9]} 37. h4
{[%clk 0:00:58.7]} 37... h6 {[%clk 0:00:53.9]} 38. Nb1 {[%clk 0:00:55.6]} 38...
Ke5 {[%clk 0:00:49.3]} 39. Nc3 {[%clk 0:00:52.4]} 39... Bc6 {[%clk 0:00:47.6]}
40. f4+ {[%clk 0:00:50.7]} 40... Kd6 {[%clk 0:00:44.3]} 41. Kd4 {[%clk
0:00:50.1]} 41... g6 {[%clk 0:00:39.2]} 42. a3 {[%clk 0:00:44.6]} 42... Bg2
{[%clk 0:00:34]} 43. b4 {[%clk 0:00:41.5]} 43... Bf1 {[%clk 0:00:31.1]} 44. a4
{[%clk 0:00:39.3]} 44... a6 {[%clk 0:00:29.2]} 45. b5 {[%clk 0:00:37]} 45...
axb5 {[%clk 0:00:27.6]} 46. Nxb5+ {[%clk 0:00:35.7]} 46... Kc6 {[%clk
0:00:24.8]} 47. Ke5 {[%clk 0:00:32.7]} 47... Bc4 {[%clk 0:00:18.5]} 48. Kf6
{[%clk 0:00:30.4]} 48... Bb3 {[%clk 0:00:17.8]} 49. Nd4+ {[%clk 0:00:27.4]}
49... Kc5 {[%clk 0:00:15.1]} 50. Nxb3+ {[%clk 0:00:26.1]} 50... Kb4 {[%clk
0:00:14.3]} 51. Kxg6 {[%clk 0:00:25.1]} 51... Kxb3 {[%clk 0:00:13.1]} 52. a5
{[%clk 0:00:22.4]} 52... Kc4 {[%clk 0:00:12]} 53. a6 {[%clk 0:00:21.9]} 53... h5
{[%clk 0:00:10.7]} 54. a7 {[%clk 0:00:21.6]} 54... Kd4 {[%clk 0:00:09.8]} 55.
a8=Q {[%clk 0:00:20.7]} 55... Ke3 {[%clk 0:00:08.9]} 56. Kxf5 {[%clk 0:00:18.5]}
56... Kf2 {[%clk 0:00:07.6]} 57. Qh8 {[%clk 0:00:17.2]} 57... Kxg3 {[%clk
0:00:06.6]} 58. Qxh5 {[%clk 0:00:16.5]} 58... Kf2 {[%clk 0:00:04.1]} 59. Ke4
{[%clk 0:00:15.8]} 59... Kg3 {[%clk 0:00:01.7]} 60. f5 {[%clk 0:00:15.7]} 60...
Kh3 {[%clk 0:00:00.3]} 61. f6 {[%clk 0:00:15]} 1-0

[Event "Live Chess"]
[Site "Chess.com"]
[Date "2024.06.02"]
[Round "-"]
[White "Purple1szed"]
[Black "PavelChernomordik"]
[Result "0-1"]
[WhiteElo "2026"]
[BlackElo "2503"]
[TimeControl "300"]
[EndTime "6:51:29 PDT"]
[Termination "PavelChernomordik won by resignation"]

1. e4 {[%clk 0:04:59]} 1... g6 {[%clk 0:04:56.9]} 2. d4 {[%clk 0:04:58.1]} 2...
Bg7 {[%clk 0:04:55.8]} 3. Nf3 {[%clk 0:04:58]} 3... d6 {[%clk 0:04:54.9]} 4. Be3
{[%clk 0:04:57.4]} 4... Nf6 {[%clk 0:04:51.4]} 5. h3 {[%clk 0:04:56.5]} 5...
Nxe4 {[%clk 0:04:50.1]} 6. Nc3 {[%clk 0:04:56.1]} 6... Nxc3 {[%clk 0:04:48.9]}
7. bxc3 {[%clk 0:04:56]} 7... c5 {[%clk 0:04:47.9]} 8. Qd2 {[%clk 0:04:55]} 8...
Qa5 {[%clk 0:04:44.4]} 9. Be2 {[%clk 0:04:53.5]} 9... Nc6 {[%clk 0:04:42.5]} 10.
d5 {[%clk 0:04:50.6]} 10... Bxc3 {[%clk 0:04:40.6]} 11. Kf1 {[%clk 0:04:48.7]}
0-1